bitfinex/quotes_ETHUSD_20250611
["timestamp","ask_amount","ask_price","bid_price","bid_amount"]
[1749679466828,5.276,2767.6,2765.7,0.7626]
[1749679467056,3.783,2767.2,2765.7,0.7626]
[1749679467342,3.61513704,2766.2,2765.7,0.7626]
[1749679467544,3.61559042,2765.8,2765.7,0.7626]
[1749679467836,8.89436624,2766.0,2765.7,0.7626]
[1749679468042,5.275,2766.1,2765.7,0.7626]
[1749679468245,3.61532899,2766.0,2765.7,0.7626]
[1749679468564,8.8902079,2766.1,2763.9,0.8232]
[1749679468565,5.275,2766.1,2763.9,0.8232]
[1749679468844,3.6158118,2765.7,2764.1,0.8232]
[1749679469054,3.61565397,2765.8,2764.1,0.8232]
[1749679469543,9.10549026,2766.4,2764.5,0.8232]
[1749679469544,3.61509225,2766.2,2764.5,0.8232]
[1749679469695,5.264,2766.3,2764.7,0.8232]
[1749679469896,3.61508243,2766.2,2764.7,0.8232]
[1749679470519,8.87895282,2766.3,2764.7,0.8232]
[1749679470719,3.61534536,2766.0,2764.7,0.8232]
[1749679470924,3.6150676,2766.2,2764.8,0.190552]
[1749679471122,1.02027227,2767.5,2765.0,0.7526]
[1749679471324,5.252,2767.4,2765.0,0.7526]
[1749679471698,0.82247851,2767.5,2765.3,9.10549026]
[1749679471911,0.82247851,2767.9,2765.8,9.10549026]
[1749679472116,1.90498085,2768.2,2766.0,0.7533]
[1749679472352,3.61327085,2767.6,2766.0,0.7533]
[1749679472554,5.244,2768.0,2766.2,0.7533]
[1749679472700,5.239,2767.9,2766.2,0.7533]
[1749679472914,5.239,2767.9,2766.3,0.00290072]
[1749679473115,0.82247851,2768.4,2766.4,0.7533]
[1749679473349,9.10549026,2768.6,2766.4,0.7533]
[1749679473350,3.61217897,2768.5,2766.4,0.7533]
[1749679473537,5.231,2768.4,2766.6,0.7533]
[1749679474129,0.18,2768.1,2767.6,0.18]
[1749679474552,0.18,2768.1,2767.6,0.9522]
[1749679474979,1.14640897,2769.4,2768.0,0.18]
[1749679475151,1.02027227,2769.2,2768.0,0.18]
[1749679475318,0.7599,2769.8,2768.0,0.18]
[1749679475319,2.16710932,2769.6,2768.0,0.18]
[1749679475524,11.24239366,2769.8,2768.1,0.7722]
[1749679475525,5.24,2769.5,2768.1,0.7722]
[1749679476330,3.61098716,2769.4,2768.1,0.7722]
[1749679476634,3.61090347,2769.4,2768.1,0.7722]
[1749679477040,5.237,2769.4,2768.2,0.00289873]
[1749679477365,5.237,2769.5,2768.2,0.00289873]
[1749679477659,8.84784022,2769.5,2768.1,0.7722]
[1749679477972,0.32371273,2770.2,2768.2,0.8148]
[1749679478180,8.83344593,2769.8,2768.2,0.8148]
[1749679478473,5.223,2769.8,2768.2,0.8148]
[1749679478978,3.60981084,2770.3,2768.6,9.10549026]
[1749679479192,1.02027227,2771.4,2769.2,0.8148]
[1749679479340,3.60888266,2771.0,2769.2,0.8148]
[1749679479671,3.60893572,2770.9,2769.2,0.8148]
[1749679479863,3.60993248,2770.2,2769.2,0.8148]
[1749679480060,3.60993362,2770.2,2769.2,0.8148]
[1749679480277,5.211,2770.6,2769.2,0.8148]
[1749679480459,0.36372562,2771.4,2769.2,0.8148]
[1749679480647,5.207,2770.7,2769.2,0.8148]
[1749679481045,3.60911402,2770.8,2769.2,0.8148]
[1749679481239,5.202,2770.9,2769.2,0.8148]
[1749679481443,3.60906597,2770.8,2769.2,0.8148]
[1749679481645,0.7681,2771.5,2769.2,0.8148]
[1749679481646,3.60877107,2771.1,2769.3,10.8148]
[1749679481867,3.60789407,2771.7,2769.6,0.8148]
[1749679482067,3.60763375,2771.9,2769.8,0.8148]
[1749679482278,3.60857332,2771.2,2769.8,0.8148]
[1749679482579,0.7681,2772.0,2769.8,0.8148]
[1749679482879,9.845376,2772.9,2770.3,0.8269]
[1749679482880,1.95,2772.6,2770.3,0.8269]
[1749679483082,0.7826,2773.6,2771.0,0.8269]
[1749679483243,0.7826,2773.6,2771.1,0.8269]
[1749679483444,3.60657216,2772.8,2771.1,0.8269]
[1749679483781,3.60629224,2773.0,2771.1,0.8269]
[1749679484077,3.60636091,2772.9,2771.1,0.8269]
[1749679484280,3.60672373,2772.6,2771.1,0.8269]
[1749679484452,3.60696119,2772.5,2771.1,0.8269]
[1749679484781,0.7826,2773.6,2771.1,0.8269]
[1749679484981,9.10549026,2773.8,2771.0,1.949]
[1749679484982,0.18,2773.1,2772.4,0.18]
[1749679485183,5.187,2773.6,2772.9,0.8269]
[1749679485387,5.187,2773.6,2771.6,0.8269]
[1749679485388,3.60620266,2773.0,2771.6,0.8269]
[1749679485683,5.187,2773.6,2772.5,0.8269]
[1749679485854,3.78608768,2773.1,2772.6,0.18]
[1749679486053,0.18,2773.1,2772.6,0.18]
[1749679486881,5.173,2773.6,2772.5,0.8269]
[1749679487079,0.18,2773.4,2772.9,0.18]
[1749679487547,0.18,2773.6,2773.1,0.18]
[1749679487749,5.164,2774.0,2772.5,0.8269]
[1749679488069,3.60672293,2772.6,2772.5,0.8269]
[1749679488269,3.60737347,2772.1,2772.0,0.18]
[1749679488483,0.18,2772.4,2771.9,0.18]
[1749679488787,9.10549026,2773.0,2771.3,0.8108]
[1749679488788,0.18,2772.6,2772.1,0.18]
[1749679489466,0.18,2772.6,2772.2,0.8108]
[1749679489685,5.329,2772.9,2772.4,0.18]
[1749679489856,8.93534401,2772.9,2772.4,0.18]
[1749679490057,9.90699026,2773.8,2772.2,0.8108]
[1749679490302,0.18,2773.1,2772.6,0.18]
[1749679490449,3.60555255,2773.5,2772.2,0.8108]
[1749679490797,0.18,2773.1,2772.6,0.18]
[1749679490950,0.18,2773.0,2772.5,0.18]
[1749679491146,5.139,2773.5,2772.2,0.8108]
[1749679491496,9.10549026,2774.2,2771.4,1.948]
[1749679491497,0.18,2773.2,2772.8,0.7798]
[1749679491662,0.18,2773.6,2773.1,0.18]
[1749679491850,8.74377627,2774.1,2773.1,0.18]
[1749679492182,8.74378831,2774.1,2773.0,0.18]
[1749679492347,3.60574682,2773.4,2773.0,0.18]
[1749679492552,3.78560305,2773.5,2773.0,0.18]
[1749679492780,0.18,2773.5,2773.0,0.18]
[1749679492983,0.18,2773.5,2772.8,0.7798]
[1749679492984,3.78606593,2773.2,2772.8,0.7798]
[1749679493164,3.78603497,2773.2,2772.8,0.7798]
[1749679493361,0.18,2773.2,2772.8,0.7798]
[1749679493561,3.78604297,2773.2,2772.8,0.7798]
[1749679493758,3.60609736,2773.1,2772.8,0.7798]
[1749679493962,3.78599702,2773.2,2772.8,0.7798]
[1749679494182,3.60620991,2773.0,2772.7,0.18]
[1749679494346,3.60620991,2773.0,2772.4,0.7751]
[1749679494347,3.60685302,2772.5,2772.4,0.7751]
[1749679494549,3.60679509,2772.6,2772.4,0.7751]
[1749679494749,3.60674798,2772.6,2772.4,0.7751]
[1749679494946,3.60672293,2772.6,2772.4,0.7751]
[1749679495184,3.78664035,2772.7,2772.4,0.7751]
[1749679495495,0.18,2772.7,2772.4,0.7751]
[1749679497099,0.18,2772.7,2772.2,0.18]
[1749679497304,0.8301,2772.9,2771.5,0.7527]
[1749679497484,3.78731523,2772.2,2771.6,0.18]
[1749679497684,0.18,2772.2,2771.6,0.18]
[1749679498032,5.083,2772.3,2771.6,0.18]
[1749679498195,8.68935755,2772.9,2772.1,0.18]
[1749679498397,3.60694365,2772.5,2772.1,0.18]
[1749679498715,0.18,2772.4,2771.8,0.18]
[1749679499010,12.71221319,2772.6,2771.5,0.7527]
[1749679499213,0.18,2771.5,2771.1,0.7975]
[1749679499413,0.18,2771.4,2771.2,0.30123506]
[1749679499777,5.071,2771.5,2771.2,0.30123506]
[1749679499977,3.60841482,2771.3,2771.2,0.30123506]
[1749679501114,8.66641482,2771.3,2771.2,0.30123506]
[1749679501412,3.60867525,2771.1,2770.1,0.9775]
[1749679501598,0.18,2770.3,2770.2,0.3013438]
[1749679501800,5.234,2770.3,2770.2,0.3013438]
[1749679502114,8.84371735,2770.3,2770.2,0.3013438]
[1749679502502,0.8198,2771.7,2770.2,0.3013438]
[1749679502702,0.18,2770.9,2770.3,0.7547]
[1749679502901,0.18,2771.3,2770.8,0.18]
[1749679503104,3.60948026,2770.5,2770.3,0.7547]
[1749679503416,5.046,2770.5,2770.3,0.7547]
[1749679503613,5.043,2770.5,2770.3,0.7547]
[1749679503789,8.65248104,2770.5,2770.3,0.7547]
[1749679503990,5.043,2770.5,2768.9,0.7996]
[1749679504320,3.60992668,2770.2,2769.0,0.30147439]
[1749679504519,5.036,2770.1,2769.1,0.7996]
[1749679504722,5.036,2770.0,2769.1,1.10106351]
[1749679504890,8.64619358,2770.0,2769.2,0.30145262]
[1749679505089,5.036,2770.0,2769.2,0.30145262]
[1749679505316,3.60980718,2770.3,2769.2,0.30145262]
[1749679505514,3.60998935,2770.1,2769.2,0.30145262]
[1749679505716,5.034,2770.2,2769.2,0.30145262]
[1749679505717,5.028,2770.0,2769.2,0.30145262]
[1749679506288,5.44802197,2770.9,2769.2,0.30145262]
[1749679506289,3.60880548,2771.0,2769.2,0.30145262]
[1749679506521,3.60932758,2770.6,2769.2,0.30145262]
[1749679506824,3.60921048,2770.7,2769.3,0.7725]
[1749679507122,0.7948,2771.1,2769.5,0.7725]
[1749679507123,5.014,2770.6,2769.5,0.7725]
[1749679507423,8.62332946,2770.6,2769.6,0.30140908]
[1749679507720,5.014,2770.6,2769.7,0.7725]
[1749679507922,9.92859026,2771.7,2769.8,0.30138732]
[1749679507923,3.60883636,2771.0,2769.8,0.30138732]
[1749679508129,5.006,2770.9,2769.8,0.30138732]
[1749679508326,3.60906597,2770.8,2769.8,0.30138732]
[1749679508634,10.74729864,2771.7,2769.8,0.30138732]
[1749679508635,0.81931144,2771.6,2769.8,0.30138732]
[1749679508789,3.60815442,2771.5,2769.8,0.30138732]
[1749679508991,3.60954898,2770.5,2769.8,0.30138732]
[1749679509234,4.996,2770.5,2769.8,0.30138732]
[1749679509430,8.60545884,2770.5,2769.8,0.30138732]
[1749679509590,4.996,2770.5,2769.8,0.30138732]
[1749679510289,0.8231,2771.7,2769.8,0.30138732]
[1749679510491,0.81933311,2771.9,2769.8,0.30138732]
[1749679510492,0.7621,2772.1,2770.0,0.7995]
[1749679510689,4.987,2772.0,2770.1,1.07995]
[1749679510934,13.84140127,2772.1,2770.0,1.10086556]
[1749679510935,4.73589976,2772.1,2770.0,1.10086556]
[1749679511133,1.12850107,2772.1,2770.1,0.8257]
[1749679511289,3.60763487,2771.9,2770.1,0.8257]
[1749679511489,3.6077627,2771.9,2770.1,0.8257]
[1749679511719,3.60771386,2771.9,2770.1,0.8257]
[1749679511926,3.6075475,2772.0,2770.0,10.30136556]
[1749679511927,4.98,2771.8,2770.3,0.8257]
[1749679512133,3.60742368,2772.1,2770.5,0.7805]
[1749679512311,3.60711744,2772.3,2770.5,0.7805]
[1749679512312,3.60729059,2772.2,2770.5,0.7805]
[1749679512870,4.972,2772.5,2770.9,0.7805]
[1749679512998,4.972,2772.4,2771.1,0.8077]
[1749679513201,4.972,2772.4,2771.8,0.8077]
[1749679513202,0.18,2772.2,2771.8,0.8077]
[1749679513459,4.972,2772.4,2772.0,0.18]
[1749679513744,8.57903847,2772.4,2772.0,0.18]
[1749679513942,4.972,2772.4,2772.0,0.18]
[1749679514112,4.965,2772.5,2771.8,0.8077]
[1749679514435,3.60724334,2772.2,2772.1,0.18]
[1749679514639,0.18,2772.2,2771.8,0.8077]
[1749679514841,0.82055484,2773.2,2771.8,0.8077]
[1749679515133,0.18,2772.6,2772.1,0.18]
[1749679515503,0.18,2773.1,2772.5,0.18]
[1749679515702,0.18,2773.1,2772.7,0.18]
[1749679516027,0.18,2773.3,2772.8,0.786]
[1749679516196,0.18,2773.6,2773.0,0.18]
[1749679516397,4.946,2773.9,2773.2,0.18]
[1749679516597,0.7777,2774.6,2772.8,0.786]
[1749679516827,3.60448306,2774.4,2773.4,0.18]
[1749679517029,0.18,2774.3,2773.5,0.786]
[1749679517242,0.18,2774.3,2773.9,0.18]
[1749679517608,4.943,2774.6,2773.9,0.18]
[1749679517813,5.12,2774.6,2774.1,0.18]
[1749679518116,0.18,2774.7,2773.7,0.807]
[1749679518332,3.60428255,2774.5,2774.2,0.18]
[1749679518537,4.934,2774.8,2773.7,0.807]
[1749679518741,0.18,2775.0,2774.4,0.18]
[1749679519034,0.18,2775.0,2774.5,1.13329865]
[1749679519255,0.18,2775.0,2774.6,0.18]
[1749679519435,0.18,2775.5,2774.9,0.18]
[1749679519619,0.7945,2776.7,2775.1,0.7658]
[1749679519821,4.928,2776.6,2775.5,0.18]
[1749679520011,0.18,2776.1,2775.1,0.7658]
[1749679520357,3.60243524,2775.9,2775.8,0.7658]
[1749679520507,4.927,2776.4,2775.8,0.7658]
[1749679520913,3.60179004,2776.4,2775.9,0.33285796]
[1749679521116,3.60179004,2776.4,2775.8,0.7658]
[1749679521425,4.919,2776.4,2775.8,0.7658]
[1749679521625,4.919,2776.4,2775.9,0.33285507]
[1749679521948,3.60217571,2776.1,2776.0,0.3328562]
[1749679522146,3.60224693,2776.1,2775.8,0.7658]
[1749679522345,3.60243524,2775.9,2775.8,0.7658]
[1749679522948,3.60271607,2775.7,2774.4,10.0]
[1749679523133,4.919,2776.4,2775.4,0.8311]
[1749679523333,4.39537797,2777.2,2775.4,0.8311]
[1749679523334,3.60196181,2776.3,2775.4,0.8311]
[1749679523652,3.60259315,2775.8,2775.5,0.33288925]
[1749679523852,4.902,2776.2,2775.4,0.8311]
[1749679524056,0.7945,2777.2,2775.4,0.8311]
[1749679524262,3.60214243,2776.2,2775.4,0.8311]
[1749679524445,4.906,2776.2,2775.4,0.8311]
[1749679524763,4.906,2776.2,2775.5,0.33287305]
[1749679524965,4.906,2776.2,2774.5,2.08924903]
[1749679524966,3.60269481,2775.7,2775.6,0.33291038]
[1749679525144,3.60412311,2774.6,2774.5,0.822]
[1749679525352,3.60399322,2774.7,2774.5,1.12287677]
[1749679525647,3.60399322,2774.7,2773.3,1.786]
[1749679525648,3.60477271,2774.1,2774.0,0.822]
[1749679525946,4.904,2774.1,2773.4,0.822]
[1749679526312,3.60477465,2774.1,2773.4,0.822]
[1749679526511,4.907,2774.1,2772.9,0.8105]
[1749679526725,12.71039292,2774.0,2772.9,0.8105]
[1749679526927,3.60601839,2773.2,2773.0,0.30103952]
[1749679527258,3.60607262,2773.1,2773.0,0.30103952]
[1749679527419,4.905,2773.2,2773.0,0.30103952]
[1749679527762,8.5110668,2773.2,2773.0,0.30103952]
[1749679527947,3.60607262,2773.1,2773.0,0.30103952]
[1749679528958,8.51097438,2773.2,2773.0,0.30103952]
[1749679529117,4.888,2773.1,2773.0,0.30103952]
[1749679529317,8.49407262,2773.1,2773.0,0.30103952]
[1749679531151,3.96921092,2773.7,2773.0,0.30103952]
[1749679531152,3.60587214,2773.3,2773.0,0.30103952]
[1749679531316,0.18,2773.1,2773.0,0.30103952]
[1749679531524,13.07698254,2774.3,2773.0,0.30103952]
[1749679531816,3.60308122,2775.5,2773.0,0.30103952]
[1749679531817,0.18,2773.7,2773.1,0.7955]
[1749679532020,0.18,2773.7,2773.2,0.18]
[1749679532220,0.18,2773.7,2773.1,0.7955]
[1749679532221,3.60529256,2773.7,2773.1,0.7955]
[1749679532460,3.60615149,2773.1,2771.9,0.8075]
[1749679532668,5.052,2773.0,2772.5,0.18]
[1749679533169,3.60643454,2772.9,2772.5,0.18]
[1749679533350,9.10549026,2772.8,2771.9,0.8075]
[1749679533549,4.42309285,2772.7,2771.4,0.8075]
[1749679533724,0.8165,2772.7,2771.4,0.8075]
[1749679533927,3.60740081,2772.1,2771.4,0.8075]
[1749679534167,4.868,2772.0,2771.4,0.8075]
[1749679534372,0.8165,2773.1,2771.4,0.8075]
[1749679534543,3.60659593,2772.7,2771.4,0.8075]
[1749679534873,8.46823787,2773.0,2771.4,0.8075]
[1749679535080,3.60659285,2772.7,2771.4,0.8075]
[1749679535284,0.8165,2773.1,2771.4,0.8075]
[1749679535443,3.60700571,2772.4,2771.4,0.8075]
[1749679535639,4.859,2772.3,2771.4,0.8075]
[1749679535876,4.859,2772.2,2771.4,0.8075]
[1749679536488,0.8165,2773.6,2771.4,0.8075]
[1749679536671,4.863,2773.5,2771.4,0.8075]
[1749679536878,3.606233,2773.0,2771.4,0.8075]
[1749679537091,3.60613618,2773.1,2771.4,0.8075]
[1749679537295,4.86,2772.9,2771.4,0.8075]
[1749679537498,0.8165,2773.6,2771.4,0.8075]
[1749679537681,3.60608817,2773.1,2771.4,0.8075]
[1749679537876,3.60639913,2772.9,2771.4,0.8075]
[1749679538075,4.854,2772.8,2771.4,0.8075]
[1749679538453,3.60601473,2773.2,2771.4,0.8075]
[1749679538654,4.854,2773.1,2771.6,0.7824]
[1749679539454,8.46009403,2773.1,2771.6,0.7824]
[1749679539652,0.8165,2773.6,2771.6,0.7824]
[1749679539883,6.227,2774.0,2771.8,0.8085]
[1749679540056,3.60542255,2773.6,2771.8,0.8085]
[1749679540260,3.6053561,2773.7,2772.0,0.8085]
[1749679540653,4.834,2773.9,2772.0,0.8085]
[1749679540982,8.43126213,2773.8,2772.0,0.8085]
[1749679541192,3.60466405,2774.2,2771.9,1.25415]
[1749679541193,0.7683,2774.8,2772.4,9.10549026]
[1749679541350,0.7683,2774.8,2772.6,0.8314]
[1749679541351,3.60467142,2774.2,2772.6,0.8314]
[1749679541550,0.7683,2774.8,2772.8,0.8314]
[1749679541753,3.60458789,2774.3,2772.8,0.8314]
[1749679541961,3.60487496,2774.1,2772.8,0.8314]
[1749679542181,3.60466727,2774.2,2772.8,0.8314]
[1749679542406,3.60282461,2775.6,2773.0,0.8137]
[1749679542566,3.60436486,2774.5,2773.0,0.8137]
[1749679542761,4.83,2774.4,2773.0,0.8137]
[1749679543207,3.60451285,2774.3,2773.0,0.8137]
[1749679543521,4.83,2774.4,2773.0,0.8137]
[1749679543808,3.798,2775.0,2773.6,0.18]
[1749679543809,0.18,2774.1,2773.6,0.18]
[1749679543980,0.18,2774.1,2773.7,0.8263]
[1749679545068,4.825,2774.3,2773.7,0.8263]
[1749679545377,4.825,2774.3,2773.3,0.8263]
[1749679545579,0.9889,2773.4,2772.9,0.18]
[1749679545783,3.60594259,2773.2,2771.7,0.8263]
[1749679546110,3.60673169,2772.6,2771.7,0.8263]
[1749679546278,10.9889,2773.4,2771.7,0.8263]
[1749679546478,8.44781256,2773.3,2771.7,0.8263]
[1749679546793,3.60626926,2773.0,2771.7,0.8263]
[1749679547108,10.8089,2773.4,2771.7,0.8263]
[1749679547292,3.60594716,2773.2,2771.7,0.8263]
[1749679547469,4.839,2773.1,2771.7,0.8263]
[1749679547871,3.60622035,2773.0,2771.7,0.8263]
[1749679548135,4.839,2772.9,2771.7,0.8263]
[1749679548410,4.833,2772.9,2771.7,0.8263]
[1749679548570,4.833,2772.9,2771.8,0.8275]
[1749679548904,4.833,2772.9,2771.9,1.91025]
[1749679550721,8.43935937,2772.9,2771.9,1.91025]
[1749679551606,3.60654577,2772.8,2771.9,1.91025]
[1749679551782,8.43939,2772.9,2771.9,1.91025]
[1749679552824,4.833,2772.9,2771.9,1.91025]
[1749679553020,8.43933571,2772.9,2772.0,0.191025]
[1749679553539,3.60713679,2772.3,2771.9,0.8275]
[1749679553820,4.787,2772.2,2771.9,0.8275]
[1749679554185,4.79,2772.2,2771.9,0.8275]
[1749679555008,3.60596996,2773.2,2771.9,0.8275]
[1749679555206,3.60667631,2772.7,2771.9,0.8275]
[1749679555517,4.779,2772.6,2771.9,0.8275]
[1749679555722,4.779,2772.6,2772.2,0.18]
[1749679555926,4.776,2772.5,2772.2,0.18]
[1749679556123,0.18,2772.7,2772.2,0.18]
[1749679556325,4.772,2772.6,2772.4,0.18]
[1749679557724,4.95,2772.9,2772.4,0.18]
[1749679557913,0.7586,2773.8,2772.5,0.7578]
[1749679558123,0.18,2773.5,2773.0,0.18]
[1749679558513,0.18,2773.5,2773.1,0.7578]
[1749679558691,6.98974234,2774.6,2773.3,0.18]
[1749679558894,0.18,2774.0,2773.5,0.18]
[1749679559096,4.931,2774.0,2773.5,0.18]
[1749679559290,8.35378525,2774.1,2773.1,0.7578]
[1749679559524,3.78471007,2774.2,2773.7,0.18]
[1749679559729,4.749,2774.0,2773.7,0.18]
[1749679560025,4.749,2774.0,2773.1,0.7578]
[1749679560222,3.60589205,2773.3,2772.7,0.7578]
[1749679560437,4.748,2773.3,2772.7,0.7578]
[1749679560663,4.748,2773.3,2772.3,0.808]
[1749679560664,3.60640505,2772.9,2772.3,0.808]
[1749679560843,3.60625269,2773.0,2772.3,0.808]
[1749679561027,3.60634273,2772.9,2772.3,0.808]
[1749679561349,8.3538606,2773.3,2772.3,0.808]
[1749679561497,3.60621103,2773.0,2772.3,0.808]
[1749679561696,3.60653761,2772.8,2772.3,0.808]
[1749679561914,4.739,2772.7,2772.3,0.808]
[1749679562195,4.739,2772.7,2771.6,1.63]
[1749679562395,3.60783393,2771.8,2771.5,0.8086]
[1749679562596,4.734,2771.8,2771.5,0.8086]
[1749679563424,4.728,2772.0,2771.5,0.8086]
[1749679563727,4.728,2772.0,2770.0,3.61006676]
[1749679563728,3.60794217,2771.7,2770.6,0.7557]
[1749679564126,4.728,2772.0,2770.6,0.7557]
[1749679564476,0.7676,2772.1,2770.6,0.7557]
[1749679564477,3.60814575,2771.6,2770.6,0.7557]
[1749679564613,4.755,2771.9,2770.6,0.7557]
[1749679564954,4.756,2771.8,2770.6,0.7557]
[1749679565111,4.753,2771.7,2770.6,0.7557]
[1749679567108,3.6070094,2772.4,2770.6,0.7557]
[1749679567109,3.60698311,2772.4,2770.6,0.7557]
[1749679567314,3.60686673,2772.5,2770.8,0.7995]
[1749679567614,3.60574021,2773.4,2770.7,10.0]
[1749679567615,3.60630458,2773.0,2771.1,10.0]
[1749679567946,3.60692063,2772.5,2771.2,0.7995]
[1749679568150,3.6067798,2772.6,2771.2,0.7995]
[1749679568333,0.8022,2773.3,2771.6,0.8065]
[1749679568536,1.631,2773.7,2771.8,0.8065]
[1749679568537,4.737,2773.2,2771.8,0.8065]
[1749679568713,8.34304229,2773.2,2771.8,0.8065]
[1749679568913,3.60625211,2773.0,2771.8,0.8065]
[1749679569113,4.737,2773.2,2771.8,0.8065]
[1749679569339,3.60559465,2773.5,2771.8,0.8065]
[1749679569551,3.60581256,2773.3,2771.8,0.8065]
[1749679569756,4.73,2773.2,2771.8,0.8065]
[1749679569919,4.731,2773.1,2771.8,0.8065]
[1749679570120,4.911,2773.0,2772.6,0.8065]
[1749679570310,0.18,2773.0,2772.6,0.8065]
[1749679570516,4.729,2773.1,2772.6,0.8065]
[1749679571031,3.78623037,2773.0,2772.6,0.8065]
[1749679571232,0.18,2773.0,2772.6,0.8065]
[1749679571447,1.44125795,2774.3,2772.6,0.8065]
[1749679571752,4.719,2773.8,2772.6,0.8065]
[1749679571924,3.60539547,2773.7,2772.6,0.8065]
[1749679572134,4.719,2773.8,2772.6,0.8065]
[1749679572338,3.60564324,2773.5,2772.6,0.8065]
[1749679572662,3.60529256,2773.7,2772.6,0.8065]
[1749679572818,1.44125795,2774.3,2772.6,0.8065]
[1749679573026,3.60498882,2774.0,2772.6,0.8065]
[1749679573374,4.709,2774.0,2772.6,0.8065]
[1749679573573,3.60468116,2774.2,2772.6,0.8065]
[1749679573725,4.707,2774.0,2772.6,0.8065]
[1749679575128,3.6055081,2773.6,2772.6,0.8065]
[1749679575324,3.60568255,2773.4,2772.6,0.8065]
[1749679575527,3.60588048,2773.3,2772.6,0.8065]
[1749679575923,5.5178,2774.0,2772.6,0.8065]
[1749679576129,3.60523902,2773.8,2772.6,0.8065]
[1749679576328,3.60511657,2773.9,2772.6,0.8065]
[1749679576329,8.29531202,2773.7,2772.6,0.8065]
[1749679576520,3.60543621,2773.6,2772.6,0.8065]
[1749679576722,3.60552732,2773.6,2772.6,0.8065]
[1749679577127,4.69,2773.7,2772.6,0.8065]
[1749679577357,3.60680831,2772.6,2771.7,0.7832]
[1749679577577,0.8108,2773.5,2771.8,0.86432]
[1749679577578,4.684,2772.7,2771.8,0.86432]
[1749679577776,3.60681238,2772.6,2771.8,0.86432]
[1749679578082,8.29064551,2772.7,2771.8,0.86432]
[1749679578330,3.60579255,2773.4,2771.8,0.86432]
[1749679578481,4.684,2773.3,2771.9,0.8169]
[1749679578637,8.28987666,2773.3,2771.9,0.8169]
[1749679578837,3.60608987,2773.1,2771.9,0.8169]
[1749679579070,3.60598771,2773.2,2771.9,0.8169]
[1749679579910,3.60695025,2772.5,2771.9,0.8169]
[1749679580188,0.8094,2773.2,2771.9,0.8169]
[1749679580697,3.60563786,2773.5,2771.9,0.8169]
[1749679580869,3.60581869,2773.3,2771.9,0.8169]
[1749679581075,3.60581256,2773.3,2771.9,0.8169]
[1749679581276,3.60594537,2773.2,2771.9,0.8169]
[1749679581577,0.18,2773.3,2772.9,0.7599]
[1749679583319,3.60729322,2772.2,2771.1,0.347455]
[1749679583598,3.60796648,2771.7,2771.0,0.8156]
[1749679583798,3.60772155,2771.9,2771.0,0.8156]
[1749679583967,4.657,2772.1,2771.0,0.8156]
[1749679583968,8.26439436,2772.1,2771.0,0.8156]
[1749679584300,4.657,2772.1,2771.0,0.8156]
[1749679584507,3.60763227,2772.0,2771.0,0.8156]
[1749679584923,4.657,2772.1,2771.0,0.8156]
[1749679584924,3.60784792,2771.8,2771.0,0.8156]
[1749679585082,3.60767686,2771.9,2771.0,0.8156]
[1749679585407,3.60785921,2771.8,2771.0,0.8156]
[1749679585703,3.6075036,2772.0,2771.0,0.8156]
[1749679585905,11.65125663,2772.1,2771.0,0.8156]
[1749679586107,3.60824489,2771.5,2771.0,0.8156]
[1749679586270,4.65,2771.4,2771.0,0.8156]
[1749679586809,6.99425663,2771.3,2770.2,0.8029]
[1749679586982,3.60900623,2770.9,2770.2,0.8029]
[1749679587186,0.8032,2771.3,2770.2,0.8029]
[1749679587538,3.60918305,2770.8,2770.2,0.8029]
[1749679587689,0.8032,2771.3,2770.2,0.8029]
[1749679588022,3.60828495,2771.4,2770.2,0.8029]
[1749679588172,0.8032,2771.3,2769.7,0.8029]
[1749679588366,4.41168674,2771.3,2769.7,0.8029]
[1749679588626,3.60854503,2771.2,2769.7,0.8029]
[1749679588830,3.60917498,2770.8,2769.7,0.8029]
[1749679588973,4.653,2770.7,2769.7,0.8029]
[1749679589174,8.26223387,2770.7,2769.7,0.8029]
[1749679589484,4.653,2770.7,2769.7,0.8029]
[1749679589684,3.60952702,2770.5,2769.7,0.8029]
[1749679590076,3.60952702,2770.5,2768.9,6.99425663]
[1749679590077,3.60970202,2770.4,2768.9,1.58]
[1749679590325,3.60948933,2770.5,2769.0,0.85742566]
[1749679590606,4.642,2770.6,2769.2,6.99425663]
[1749679590804,0.7775,2771.7,2770.0,6.99425663]
[1749679591073,0.3235249,2772.2,2770.9,10.0]
[1749679591275,0.3235249,2772.2,2771.0,1.69942566]
[1749679591683,0.3235249,2772.2,2771.3,10.0]
[1749679592207,0.3235249,2772.2,2772.0,0.18]
[1749679592908,0.3235249,2772.2,2771.1,10.0]
[1749679593108,0.3235249,2772.2,2771.8,0.18]
[1749679593913,3.60746858,2772.1,2771.7,0.8297]
[1749679594210,0.3235249,2772.2,2771.7,0.8297]
[1749679594211,0.18,2772.0,2771.7,0.8297]
[1749679595281,3.7875337,2772.0,2771.7,0.8297]
[1749679595481,3.78753751,2772.0,2771.5,0.18]
[1749679595689,3.78750827,2772.0,2771.5,0.18]
[1749679595910,3.6082204,2771.5,2771.1,0.18]
[1749679596250,0.3235249,2772.2,2771.2,0.8154]
[1749679597618,3.60745053,2772.1,2771.2,0.8154]
[1749679597795,3.60755329,2772.0,2771.2,0.8154]
[1749679597988,3.60798591,2771.7,2771.2,0.8154]
[1749679598184,4.608,2771.9,2771.2,0.8154]
[1749679598397,8.2156889,2771.9,2771.2,0.8154]
[1749679598620,4.608,2771.9,2771.2,0.8154]